[Event "36th Belgrade Trophy 2023"]
[Site "Belgrade"]
[Date "2023.11.29"]
[Round "5.15"]
[White "Jandric, Damjan"]
[Black "Javadov, Habil"]
[Result "1/2-1/2"]
[ECO "C02"]
[WhiteElo "2121"]
[BlackElo "2026"]
[Annotator "RC"]
[PlyCount "138"]
[EventDate "2023.10.23"]
[EventType "swiss"]
[EventCountry "SRB"]
[SourceTitle "playchess.com"]
[Source "ChessBase"]
[SourceQuality "1"]
[TimeControl "40/5400+30:900+30"]

1. e4 {[%emt 0:08:54]} e6 {[%emt 0:00:11]} 2. d4 {[%emt 0:00:18]} d5 {[%emt 0:00:06]} 3. e5 {[%emt 0:00:06]} c5 {[%emt 0:00:06]} 4. c3 {[%emt 0:00:06]} Nc6 {[%emt 0:00:05]} 5. Nf3 {[%emt 0:00:07]} Bd7 {[%emt 0:00:05]} 6. a3 {[%emt 0:00:42]} c4 {[%emt 0:00:06]} 7. Nbd2 {[%emt 0:06:30]} Na5 {[%emt 0:02:08]} 8. g3 {[%emt 0:00:29]} Bc6 {[%emt 0:00:47]} 9. Bg2 {[%emt 0:09:39]} Qd7 {[%emt 0:00:13]} 10. O-O {[%emt 0:01:13]} Ba4 {[%emt 0:00:16]} 11. Qe2 {[%emt 0:00:25]} Ne7 {[%emt 0:00:44]} 12. Nh4 {[%emt 0:05:31]} O-O-O {[%emt 0:07:46]} 13. f4 {[%emt 0:11:22]} g6 {[%emt 0:03:40]} 14. Re1 {[%emt 0:03:31]} Nb3 {[%emt 0:12:54]} 15. Nxb3 {[%emt 0:00:15]} Bxb3 {[%emt 0:01:01]} 16. Be3 {[%emt 0:04:27]} Nf5 {[%emt 0:10:36]} 17. Nxf5 {[%emt 0:00:12]} exf5 {[%emt 0:00:27]} 18. Bf3 {[%emt 0:04:02]} h5 {[%emt 0:00:31]} 19. h3 {[%emt 0:04:21]} Be7 {[%emt 0:03:52]} 20. Qg2 {[%emt 0:00:28]} Ba4 {[%emt 0:08:33]} 21. Re2 {[%emt 0:01:18]} a5 {[%emt 0:01:25]} 22. Rae1 {[%emt 0:03:58]} Qe6 {[%emt 0:00:52]} 23. Bc1 {[%emt 0:01:33]} Kb8 {[%emt 0:05:45]} 24. Rf2 {[%emt 0:03:19]} Ka7 {[%emt 0:04:11]} 25. Kh2 {[%emt 0:04:40]} Rh7 {[%emt 0:03:32]} 26. Rh1 {[%emt 0:00:13]} Bc6 {[%emt 0:00:56]} 27. Bd1 {[%emt 0:00:34]} b5 {[%emt 0:01:36]} 28. Re1 {[%emt 0:02:02]} Bb7 {[%emt 0:05:52]} 29. Kg1 {[%emt 0:00:57]} Bc8 {[%emt 0:01:12]} 30. b3 {[%emt 0:09:02]} cxb3 {[%emt 0:00:50]} 31. Bxb3 {[%emt 0:00:02]} h4 {[%emt 0:00:11]} 32. a4 {[%emt 0:02:47]} hxg3 {[%emt 0:00:34]} 33. Ra2 {[%emt 0:00:58]} b4 {[%emt 0:03:46]} 34. cxb4 {[%emt 0:00:15]} Bxb4 {[%emt 0:03:06]} 35. Re3 {[%emt 0:00:41]} Bb7 {[%emt 0:07:07]} 36. Rc2 {[%emt 0:01:45]} Qb6 {[%emt 0:01:11]} 37. Rxg3 {[%emt 0:01:27]} Kb8 {[%emt 0:00:08]} 38. Bb2 {[%emt 0:00:18]} Rhh8 {[%emt 0:01:20]} 39. Kh2 {[%emt 0:00:15]} Qe6 {[%emt 0:02:08]} 40. Qf3 {[%emt 0:00:00]} Rc8 {[%emt 0:00:00]} 41. Rgg2 {[%emt 0:00:36]} Rxc2 {[%emt 0:02:37]} 42. Rxc2 {[%emt 0:00:42]} Rc8 {[%emt 0:00:16]} 43. Rxc8+ {[%emt 0:05:40]} Kxc8 {[%emt 0:00:07]} 44. Bc3 {[%emt 0:01:56]} Kb8 {[%emt 0:00:54]} 45. Bxb4 {[%emt 0:01:56]} axb4 {[%emt 0:00:05]} 46. Qg2 {[%emt 0:00:59]} Qc6 {[%emt 0:04:38]} 47. Qd2 {[%emt 0:01:32]} Qc3 {[%emt 0:02:18]} 48. Qxc3 {[%emt 0:01:57]} bxc3 {[%emt 0:00:01]} 49. Kg3 {[%emt 0:00:14]} Ba6 {[%emt 0:02:56]} 50. Kf2 {[%emt 0:11:24]} Bc4 {[%emt 0:01:03]} 51. Bc2 {[%emt 0:00:41]} Kb7 {[%emt 0:00:29]} 52. Ke1 {[%emt 0:01:19]} Kb6 {[%emt 0:00:11]} 53. Kd1 {[%emt 0:00:32]} Ka5 {[%emt 0:00:42]} 54. Kc1 {[%emt 0:00:35]} Kb4 {[%emt 0:01:26]} 55. Bd1 {[%emt 0:00:32]} Ba6 {[%emt 0:04:34]} 56. h4 {[%emt 0:00:58]} Bc8 {[%emt 0:00:34]} 57. h5 {[%emt 0:01:26]} gxh5 {[%emt 0:00:27]} 58. Bxh5 {[%emt 0:00:02]} Be6 {[%emt 0:06:26]} 59. Kc2 {[%emt 0:00:20]} Bd7 {[%emt 0:02:09]} 60. a5 {[%emt 0:00:58]} Ba4+ {[%emt 0:00:30]} 61. Kc1 {[%emt 0:00:09]} Kxa5 {[%emt 0:00:12]} 62. Bxf7 {[%emt 0:00:15]} Bc6 {[%emt 0:00:40]} 63. Bh5 {[%emt 0:01:45]} Kb4 {[%emt 0:01:05]} 64. Be2 {[%emt 0:00:07]} Bd7 {[%emt 0:00:54]} 65. Bf1 {[%emt 0:00:41]} Kb3 {[%emt 0:00:25]} 66. Bd3 {[%emt 0:00:38]} Be6 {[%emt 0:00:45]} 67. Kb1 {[%emt 0:01:00]} Bd7 {[%emt 0:00:54]} 68. Kc1 {[%emt 0:00:07]} Be6 {[%emt 0:00:04]} 69. Kb1 {[%emt 0:00:07]} Bd7 {[%emt 0:02:49]} 1/2-1/2

[Event "36th Belgrade Trophy 2023"]
[Site "Belgrade"]
[Date "2023.11.30"]
[Round "6.1"]
[White "Kilic, Eray"]
[Black "Pap, Misa"]
[Result "0-1"]
[ECO "A45"]
[WhiteElo "2446"]
[BlackElo "2426"]
[Annotator "TA"]
[PlyCount "64"]
[EventDate "2023.10.23"]
[EventType "swiss"]
[EventCountry "SRB"]
[SourceTitle "playchess.com"]
[Source "ChessBase"]
[SourceQuality "1"]
[TimeControl "40/5400+30:900+30"]

{[%evp 9,64,0,8,9,14,0,0,0,0,0,0,-9,-8,-28,0,-1,0,0,0,-18,-26,-13,-28,-92,-96,-135,-123,-249,-243,-329,-331,-305,-307,-437,-431,-625,-618,-692,-679,-949,-483,-916,-911,-1158,-1143,-1162,-1146,-1139,-1170,-29988,-29989,-29989,-29990,-29990,-29991,-29996,-29997]} 1. d4 {[%emt 0:00:03]} Nf6 {[%emt 0:00:23]} 2. Bf4 {[%emt 0:00:10]} d6 {[%emt 0:02:38]} 3. Nc3 {[%emt 0:00:24]} Nbd7 {[%emt 0:02:48]} 4. Nf3 {[%emt 0:01:05]} c5 {[%emt 0:03:32]} 5. e3 {[%emt 0:02:21]} g6 {[%emt 0:06:06]} 6. h4 {[%emt 0:04:52] [#] A45: Trompowsky Attack.} h6 $146 {[%emt 0:01:59]} ({Predecessor:} 6... Bg7 7. Bd3 a6 8. a4 Qa5 9. O-O Nh5 10. Bh2 Ndf6 11. Nd2 Ng4 12. Nb3 Qd8 {1-0 Enkhtuul,A (2254)-Fisabilillah,U (2213) Asia zt 3.3 (Women) 2023 (8)}) 7. Qd2 {[%emt 0:02:45]} Bg7 {[%emt 0:01:20]} 8. Be2 {[%emt 0:07:34] The position is equal.} a6 {[%emt 0:02:40]} 9. a4 $1 {[%emt 0:00:41]} b6 {[%emt 1:13:34]} 10. d5 {[%emt 0:05:09]} Nh5 {[%emt 0:00:30]} 11. O-O {[%emt 1:10:56]} Nxf4 {[%emt 0:00:30]} 12. exf4 {[%emt 0:00:00]} O-O {[%emt 0:00:30]} 13. h5 {[%emt 0:01:00][%mdl 64] [#] Deflection} gxh5 {[%emt 0:00:30]} 14. f5 {[%emt 0:00:00]} Nf6 {[%emt 0:00:00]} 15. Nh4 {[%emt 0:00:00]} Bd7 {[%emt 0:00:00]} 16. Qf4 {[%emt 0:00:00] [#]} (16. Ra3 $11 {keeps the balance.}) 16... b5 $1 $17 {[%emt 0:00:00]} 17. Rad1 {[%emt 0:00:00][%cal Ra4b5]} (17. Qf3 bxa4) 17... Qa5 {[%emt 0:02:00][%cal Rb5a4]} (17... b4 18. Ne4 $17) 18. Ne4 {[%emt 0:02:30] Loses the game.} (18. axb5 $17 axb5 19. Rfe1) 18... Qb4 $19 {[%emt 0:00:30]} (18... bxa4 19. Nxf6+ Bxf6 20. Qxh6 $11) 19. Nxf6+ {[%emt 0:00:00]} Bxf6 {[%emt 0:00:00]} 20. c4 {[%emt 0:00:00]} Kh7 {[%emt 0:00:00]} (20... Qxa4 21. Qxh6 bxc4 22. g3 $17) (20... bxa4 21. Rb1 $17) (20... Bxb2 21. axb5 axb5 22. Qxh6 $15) 21. Rfe1 {[%emt 0:00:00]} (21. b3 $142 Qxb3 22. Nf3) 21... bxc4 {[%emt 0:00:00]} (21... Bxb2 22. Rb1 Qa3 23. f6 Bxf6 24. Qe4+ Kg7 25. cxb5 $11) (21... bxa4 22. Bd3 $19) (21... Qxb2 $2 22. Bxh5 bxc4 23. Re2 $19) 22. Bxc4 {[%emt 0:00:00]} (22. g3 $142) 22... Rg8 {[%emt 0:00:00] Threatens to win with ...Rg4.} (22... Bxb2 23. Rb1 Be5 24. Qe4 Qxa4 25. f6+ Kg8 26. fxe7 $11) (22... Qxa4 23. b3 Qb4 24. Rxe7 Bxe7 25. f6 Bxf6 26. Qxf6 $11) 23. f3 {[%emt 0:00:00] Against Rg4} Bxa4 {[%emt 0:02:30] A strong pair of Bishops.} (23... Bxb2 24. Rxe7 Qxa4 25. Rb1 $11 (25. Rxf7+ Rg7 $17)) 24. Rxe7 {[%emt 0:03:00]} Rg7 {[%emt 0:00:30] Active counter play!} (24... Bxd1 25. Rxf7+ Bg7 26. Bd3 $18) 25. Rde1 {[%emt 0:00:00]} (25. Rf1 $142) 25... Bb3 {[%emt 0:00:00]} (25... Bxe7 $2 26. Rxe7 Bb3 27. f6 Qxc4 28. Qxc4 (28. Qf5+ $2 Kg8 $19) 28... Bxc4 29. fxg7 Bxd5 30. Rd7 $19) 26. R1e4 {[%emt 0:00:00]} Bxc4 {[%emt 0:00:00]} (26... Bxe7 $2 {is the wrong capture.} 27. Bd3 Bg5 28. Rxb4 Bxf4 29. f6+ Kg8 30. Rxb3 $19) 27. Rxc4 {[%emt 0:00:00]} Qxb2 {[%emt 0:00:00] And now ...Bxh4 would win.} 28. Qe4 {[%emt 0:00:00]} Rag8 {[%emt 0:00:00][%cal Rg7g2] ( -> ...Rxg2+)} 29. f4 {[%emt 0:00:00]} Bxh4 {[%emt 0:00:00] Black mates.} 30. f6+ {[%emt 0:00:00]} Rg6 {[%emt 0:00:00]} 31. Rxf7+ {[%emt 0:00:00]} Kh8 {[%emt 0:00:00]} 32. Rc2 {[%emt 0:00:00]} Qb1+ {[%emt 0:00:00] Excellently played by Pap!   Weighted Error Value: White=1.10/Black=0.18 (very precise)} 0-1

[Event "36th Belgrade Trophy 2023"]
[Site "Belgrade"]
[Date "2023.11.30"]
[Round "6.2"]
[White "Blagojevic, Dragisa"]
[Black "Milosevic, Milos"]
[Result "1-0"]
[ECO "A70"]
[WhiteElo "2438"]
[BlackElo "2362"]
[Annotator "TA"]
[PlyCount "121"]
[EventDate "2023.10.23"]
[EventType "swiss"]
[EventCountry "SRB"]
[SourceTitle "playchess.com"]
[Source "ChessBase"]
[SourceQuality "1"]
[TimeControl "40/5400+30:900+30"]

{[%evp 29,121,16,9,9,11,14,9,6,9,9,23,28,84,94,94,93,99,93,79,81,74,75,110,86,84,79,107,96,92,85,85,75,81,71,122,85,106,108,141,141,136,130,99,115,115,94,94,79,79,87,79,79,79,79,88,91,638,670,638,692,675,621,116,116,1039,14,45,14,368,368,1060,751,12837,513,12838,12839,12839,12839,12841,12841,12841,12842,12842,12843,12846,12847,12847,12847,12848,12848,12849,12848,12850,12849]} 1. d4 {[%emt 0:00:03]} Nf6 {[%emt 0:10:54]} 2. c4 {[%emt 0:00:08]} e6 {[%emt 0:00:07]} 3. Nf3 {[%emt 0:00:10]} c5 {[%emt 0:00:04]} 4. d5 {[%emt 0:00:16]} exd5 {[%emt 0:00:07]} 5. cxd5 {[%emt 0:00:05]} d6 {[%emt 0:00:06]} 6. Nc3 {[%emt 0:00:08][%cal Bb1c3,Bc3e4,Be4d6][%mdl 32]} g6 {[%emt 0:00:05]} 7. h3 {[%emt 0:00:31]} Bg7 {[%emt 0:00:07]} 8. e4 {[%emt 0:00:05]} O-O {[%emt 0:00:04]} 9. Bd3 {[%emt 0:00:05]} b5 {[%emt 0:00:13]} 10. Bxb5 {[%emt 0:00:59]} Nxe4 {[%emt 0:02:19]} 11. Nxe4 {[%emt 0:00:08]} Qa5+ {[%emt 0:00:02]} 12. Nfd2 {[%emt 0:00:18]} Qxb5 {[%emt 0:00:04]} 13. Nxd6 {[%emt 0:00:12]} Qa6 {[%emt 0:00:03]} 14. N2c4 {[%emt 0:00:14]} Nd7 {[%emt 0:00:10]} 15. O-O {[%emt 0:00:22]} Ne5 {[%emt 0:00:07]} 16. Nxc8 {[%emt 0:00:26] A70: Modern Benoni: 6 e4 g6 7 Nf3.} Raxc8 {[%emt 0:00:20]} 17. Nxe5 {[%emt 0:00:39]} Bxe5 {[%emt 0:00:10]} 18. Re1 {[%emt 0:01:09] The position is equal.} Rfe8 {[%emt 0:06:10]} 19. Bg5 {[%emt 0:05:46]} h6 {[%emt 0:01:33] [#]} 20. d6 $146 {[%emt 0:08:04]} ({Predecessor:} 20. Bxh6 Bxb2 21. Rb1 Rxe1+ 22. Qxe1 Bd4 23. Bg5 Qd6 24. Qe4 f5 25. Qf3 c4 26. Re1 Be5 27. Qe3 Bf6 28. Bxf6 Qxf6 29. Qxa7 c3 30. Qb7 Rd8 31. Qc7 Qd6 {1-0 Bareev,E (2605)-Vera Gonzalez Quevedo,R (2485) Olympiad-29 Novi Sad 1990 (10)}) 20... Qxd6 {[%emt 0:02:28]} (20... hxg5 $2 21. d7 Re6 22. dxc8=N (22. d8=R+ Kg7 $18) 22... Qxc8 23. Qg4 $18) (20... Bxd6 $11 21. Bxh6 Be5) 21. Qxd6 $16 {[%emt 0:01:45]} (21. Bxh6 $6 Qxd1 22. Raxd1 Bxb2 $11) 21... Bxd6 {[%emt 0:00:01]} 22. Bxh6 {[%emt 0:03:13]} Be5 {[%emt 0:02:18]} 23. Rab1 {[%emt 0:19:30]} c4 {[%emt 0:09:14]} 24. Kf1 {[%emt 0:05:21]} f6 {[%emt 0:38:36]} 25. Be3 {[%emt 0:25:05]} g5 {[%emt 0:02:26]} 26. Re2 {[%emt 0:03:35]} Kf7 {[%emt 0:04:48]} 27. Rc1 {[%emt 0:04:51]} Re7 {[%emt 0:02:06]} 28. Rcc2 {[%emt 0:00:20]} Rc6 {[%emt 0:04:13]} 29. Bd2 {[%emt 0:02:45]} Rd7 {[%emt 0:02:49]} 30. Bb4 {[%emt 0:03:03]} Kg6 {[%emt 0:06:05]} 31. g3 {[%emt 0:00:39]} Rd5 {[%emt 0:01:51]} (31... Rd3 $142) 32. Re4 {[%emt 0:05:42]} Rd1+ {[%emt 0:00:42]} 33. Kg2 {[%emt 0:02:34]} Ra1 {[%emt 0:01:00] [#]} 34. a3 $1 {[%emt 0:01:17]} ({Don't play} 34. Rexc4 Rxc4 35. Rxc4 Rxa2 $16) 34... Rb1 {[%emt 0:01:04]} 35. Rexc4 {[%emt 0:00:50]} Rxc4 {[%emt 0:00:06]} 36. Rxc4 {[%emt 0:00:03]} Rxb2 {[%emt 0:00:04][%mdl 4096] Endgame KRB-KRB} 37. Bc5 {[%emt 0:01:02]} a5 {[%emt 0:02:33]} 38. Bd4 {[%emt 0:05:21]} Bxd4 {[%emt 0:00:08]} 39. Rxd4 {[%emt 0:00:02] Hoping for Rd5. KR-KR} Rb3 {[%emt 0:00:09]} 40. Ra4 {[%emt 0:00:00]} Rb5 {[%emt 0:00:00]} 41. h4 {[%emt 0:00:46]} Rc5 {[%emt 0:03:00]} 42. Kh3 {[%emt 0:01:23]} Rb5 $2 {[%emt 0:01:36][%mdl 8192] [#]} (42... gxh4 $16 43. Rg4+ (43. Rxh4 Rc2 $16) (43. gxh4 Rd5 $16) (43. Kxh4 Rd5 $16) 43... Kf7) 43. Rg4 $1 $18 {[%emt 0:03:39]} Kh5 {[%emt 0:02:43]} 44. hxg5 {[%emt 0:02:29]} fxg5 {[%emt 0:00:08]} 45. Rc4 {[%emt 0:01:14]} Rd5 {[%emt 0:02:26]} 46. a4 {[%emt 0:02:41] Strongly threatening Kg2.} Rd2 $2 {[%emt 0:03:20][%mdl 8192]} (46... Re5 $16 47. g4+ Kh6) 47. g4+ $2 {[%emt 0:01:10]} ({White has to play} 47. Rc6 $18 {[%csl Gh3][%cal Rg3g4]} g4+ 48. Kg2) 47... Kg6 $11 {[%emt 0:00:05]} 48. Rc6+ {[%emt 0:00:22]} Kf7 {[%emt 0:01:03]} 49. Rc5 {[%emt 0:00:50][%csl LRa5,LRg5]} Rd3+ $2 {[%emt 0:00:29]} (49... Kg6 50. Kg3 Rd3+ 51. f3 Ra3 52. Rxa5 Ra2) 50. Kg2 $18 {[%emt 0:00:24] White is clearly winning.} Rd4 {[%emt 0:00:08]} 51. Kg3 {[%emt 0:00:20]} (51. Rxg5 $142 Rxa4 52. Kg3) 51... Rxa4 {[%emt 0:00:06]} (51... Rd3+ $142 52. f3 Kg6) 52. Rxg5 {[%emt 0:00:05]} Ra1 {[%emt 0:00:13]} 53. Rb5 {[%emt 0:01:41]} a4 {[%emt 0:00:27]} 54. Ra5 {[%emt 0:00:17]} a3 {[%emt 0:00:24]} 55. Kf4 {[%emt 0:00:38]} Ke6 {[%emt 0:00:48]} 56. g5 {[%emt 0:01:44][%cal Bg4g5,Bg5g6][%mdl 32]} a2 {[%emt 0:01:36]} 57. Ra6+ {[%emt 0:05:09]} Ke7 {[%emt 0:01:57]} 58. Kf5 {[%emt 0:00:14]} Kd7 {[%emt 0:00:56]} 59. g6 {[%emt 0:00:40]} Ke7 {[%emt 0:00:08]} 60. Ra7+ {[%emt 0:00:07]} Kd6 {[%emt 0:00:05]} 61. Kf6 {[%emt 0:00:22] Weighted Error Value: White=0.39/Black=0.33} 1-0

[Event "36th Belgrade Trophy 2023"]
[Site "Belgrade"]
[Date "2023.11.30"]
[Round "6.3"]
[White "Atalik, Suat"]
[Black "Gusev, Mikhail"]
[Result "1-0"]
[ECO "E51"]
[WhiteElo "2427"]
[BlackElo "2055"]
[Annotator "TA"]
[PlyCount "63"]
[EventDate "2023.10.23"]
[EventType "swiss"]
[EventCountry "SRB"]
[SourceTitle "playchess.com"]
[Source "ChessBase"]
[SourceQuality "1"]
[TimeControl "40/5400+30:900+30"]

{[%evp 14,63,2,0,-11,0,0,0,0,0,25,35,32,31,43,50,54,45,70,83,93,93,157,135,183,194,310,219,315,247,451,463,548,521,580,524,682,489,603,584,594,556,1078,811,1402,1377,12840,12840,12841,12841,29987,29988]} 1. d4 {[%emt 0:00:06]} Nf6 {[%emt 0:00:20]} 2. c4 {[%emt 0:00:13]} e6 {[%emt 0:00:12]} 3. Nc3 {[%emt 0:00:23]} Bb4 {[%emt 0:00:26]} 4. Nf3 {[%emt 0:01:29]} d5 {[%emt 0:03:04]} 5. e3 {[%emt 0:01:18]} O-O {[%emt 0:00:57]} 6. a3 {[%emt 0:01:18]} Bxc3+ {[%emt 0:02:07]} 7. bxc3 {[%emt 0:00:06]} c5 {[%emt 0:00:15]} 8. Bb2 {[%emt 0:01:19] now supersedes 8.Bd3.} Nc6 {[%emt 0:03:40] E51: Nimzo-Indian: Rubinstein: 4...0-0 5 Nf3 d5.} 9. Rc1 {[%emt 0:01:15]} b6 {[%emt 0:07:59]} 10. cxd5 {[%emt 0:04:37]} exd5 {[%emt 0:01:10] The position is equal.} 11. c4 {[%emt 0:01:17]} cxd4 {[%emt 0:14:48]} 12. Nxd4 {[%emt 0:01:30] [#]} Nxd4 $146 {[%emt 0:02:30]} ({Predecessor:} 12... Ne5 13. cxd5 Qxd5 14. Nb5 Qxd1+ 15. Rxd1 Ned7 16. Bc4 Ba6 17. Nd6 Bxc4 18. Nxc4 Rfc8 {½-½ Gulko,B (2585)-Onischuk,A (2650) New York Mayor's Cup rapid 2006 (3)}) 13. Qxd4 {[%emt 0:00:35]} Bb7 {[%emt 0:08:37]} 14. c5 {[%emt 0:03:53]} bxc5 {[%emt 0:02:34]} 15. Rxc5 {[%emt 0:00:51]} Rc8 {[%emt 0:00:11]} 16. Bd3 {[%emt 0:12:51] White is more active.} Rxc5 {[%emt 0:12:25]} 17. Qxc5 {[%emt 0:00:09]} Ne4 {[%emt 0:05:11]} (17... Qc8 $142 18. Qxa7 d4) 18. Qxa7 $16 {[%emt 0:10:52]} Bc6 {[%emt 0:19:37] [#]} (18... Qa8 $16 {was necessary.} 19. Qxa8 Rxa8) 19. O-O $1 $18 {[%emt 0:03:54] Black must now prevent Rc1.} Qg5 {[%emt 0:01:37]} (19... Qd7 {was called for.} 20. Qb6 Nd6) 20. Qd4 {[%emt 0:13:46] Hoping for Rc1.} h5 {[%emt 0:06:25]} (20... Rb8 $142 21. Rc1 Be8) 21. Rc1 $40 {[%emt 0:04:20][%mdl 128] White is out for blood.} Ba8 {[%emt 0:02:14] [#]} (21... Nd2 22. Qc5 (22. Rxc6 $2 Nf3+ 23. Kf1 Nxd4 $17) 22... Rc8) 22. h4 $1 {[%emt 0:04:08][%mdl 512]} Qh6 {[%emt 0:00:04]} (22... Qf6 23. Qxf6) 23. a4 {[%emt 0:02:09]} Re8 {[%emt 0:03:28]} 24. Bb5 {[%emt 0:02:39] A strong pair of Bishops.} Rd8 {[%emt 0:01:03]} 25. Qe5 {[%emt 0:01:25]} d4 {[%emt 0:01:09]} 26. Bxd4 {[%emt 0:01:31]} Qg6 {[%emt 0:00:22]} 27. Bd3 {[%emt 0:04:09] aiming for f3.} f5 {[%emt 0:00:52]} 28. f3 {[%emt 0:03:18]} Nd2 {[%emt 0:00:39]} 29. Kf2 {[%emt 0:00:18] White wants to mate with Rc7.} ({Worse is} 29. Bxf5 Nxf3+ 30. Kf2 Nxe5 $17) 29... Be4 {[%emt 0:00:32] [#]} 30. Rc7 $1 {[%emt 0:05:20][%cal Rc7g7]} Rxd4 {[%emt 0:00:31]} 31. Qxd4 {[%emt 0:00:32]} f4 {[%emt 0:00:30]} 32. Rc8+ {[%emt 0:00:45] Black did not feel at home in the position after the opening. A cool game by Atalik.   Weighted Error Value: White=0.30/Black=0.83} 1-0

[Event "36th Belgrade Trophy 2023"]
[Site "Belgrade"]
[Date "2023.11.30"]
[Round "6.4"]
[White "Garifulin, Yury"]
[Black "Nenezic, Marko"]
[Result "0-1"]
[ECO "B90"]
[WhiteElo "1956"]
[BlackElo "2499"]
[Annotator "TA"]
[PlyCount "64"]
[EventDate "2023.10.23"]
[EventType "swiss"]
[EventCountry "SRB"]
[SourceTitle "playchess.com"]
[Source "ChessBase"]
[SourceQuality "1"]
[TimeControl "40/5400+30:900+30"]

{[%evp 19,64,0,0,0,4,12,5,20,0,0,0,0,0,0,0,0,0,-12,-2,-27,-13,-14,-21,-23,-16,-210,-210,-203,-192,-187,-183,-204,-209,-281,-270,-282,-287,-311,-302,-291,-265,-436,-434,-386,-354,-504,-497]} 1. e4 {[%emt 0:07:18]} c5 {[%emt 0:00:25]} 2. Nf3 {[%emt 0:00:06]} d6 {[%emt 0:00:28]} 3. d4 {[%emt 0:00:06]} cxd4 {[%emt 0:00:07]} 4. Nxd4 {[%emt 0:00:04]} Nf6 {[%emt 0:00:28]} 5. Nc3 {[%emt 0:00:05]} a6 {[%emt 0:00:23]} 6. Be3 {[%emt 0:00:08]} e5 {[%emt 0:00:16]} 7. Nb3 {[%emt 0:00:05]} Be6 {[%emt 0:00:38]} 8. f3 {[%emt 0:00:07]} Be7 {[%emt 0:00:26]} 9. Qd2 {[%emt 0:00:08]} h5 {[%emt 0:00:15]} 10. O-O-O {[%emt 0:00:35]} Nbd7 {[%emt 0:00:26]} 11. Nd5 {[%emt 0:00:37] B90: Sicilian Najdorf: Unusual White 6th moves, 6 Be3 Ng4 and 6 Be3 e5.} Nxd5 {[%emt 0:01:11]} 12. exd5 {[%emt 0:00:06]} Bf5 {[%emt 0:00:09]} 13. Kb1 {[%emt 0:01:03] The position is equal. is now more promising than 13.Bd3.} Rc8 {[%emt 0:00:39]} 14. Bd3 {[%emt 0:00:34]} Bxd3 {[%emt 0:00:23]} 15. Qxd3 {[%emt 0:00:12]} Bg5 {[%emt 0:00:53]} 16. Bf2 {[%emt 0:09:15]} Qc7 {[%emt 0:01:37]} 17. h4 {[%emt 0:02:58]} Bh6 {[%emt 0:00:22]} 18. g4 {[%emt 0:14:49] aiming for g5.} Bf4 {[%emt 0:04:14]} 19. Nd2 {[%emt 0:23:40]} hxg4 {[%emt 0:12:44]} (19... Bxd2 {with more complications.} 20. Rxd2 hxg4 21. fxg4 Qc4) 20. fxg4 {[%emt 0:00:35]} Bxd2 {[%emt 0:00:11]} 21. Qxd2 {[%emt 0:01:48]} Nf6 {[%emt 0:00:59]} 22. g5 $2 {[%emt 0:07:05] This costs White the game.} (22. Rhg1 $1 $11 {and White is okay.}) 22... Ne4 $19 {[%emt 0:01:14]} 23. Qe2 {[%emt 0:00:21] [#]} Qxc2+ {[%emt 0:00:45][%mdl 512]} 24. Qxc2 {[%emt 0:00:07]} Rxc2 {[%emt 0:00:04] [#]} 25. Kxc2 $146 {[%emt 0:03:31]} ({Predecessor:} 25. Bb6 Rc4 26. Rc1 Nd2+ 27. Ka1 Rhxh4 28. b3 Rxh1 29. Rxh1 Rc8 30. Rh7 g6 {0-1 Tahbaz,A (2426)-Darini,P (2527) IRI-chT 15th 2016 (4.1)}) 25... Nxf2 {[%emt 0:00:07]} 26. Rdf1 {[%emt 0:00:14]} Nxh1 {[%emt 0:00:09]} 27. Rxh1 {[%emt 0:00:09][%mdl 4096] Endgame KR-KR} f6 {[%emt 0:03:51]} 28. gxf6 {[%emt 0:04:06]} gxf6 {[%emt 0:02:00]} 29. Kd3 {[%emt 0:01:26]} Kf7 {[%emt 0:00:16]} 30. Rc1 $2 {[%emt 0:00:27]} (30. Ke4) 30... Rxh4 {[%emt 0:00:20]} 31. Rc7+ {[%emt 0:00:06]} Kg6 {[%emt 0:00:06] ...Rd4+ is the strong threat.} 32. Rd7 {[%emt 0:00:18]} (32. Rxb7 $142 Rd4+ 33. Ke2) 32... Rd4+ {[%emt 0:00:13] Weighted Error Value: White=0.46/Black=0.00 (flawless)} 0-1